[Event "*** Titled Tuesday Blitz"]
[Site "Chess.com"]
[Date "2019.01.01"]
[Round "7"]
[White "joppie2"]
[Black "JozefKneht"]
[Result "1-0"]
[WhiteElo "2742"]
[BlackElo "2518"]
[TimeControl "180+2"]
[EndTime "14:39:13 PST"]
[Termination "joppie2 won by resignation"]

1. c4 {[%clk 0:01:58.7]} 1... e6 {[%clk 0:02:57.2]} 2. Nc3 {[%clk 0:01:58.1]}
2... d5 {[%clk 0:02:57.8]} 3. d4 {[%clk 0:01:57.3]} 3... Nf6 {[%clk 0:02:58.3]}
4. cxd5 {[%clk 0:01:57]} 4... exd5 {[%clk 0:02:58.6]} 5. Bg5 {[%clk 0:01:57.3]}
5... Be7 {[%clk 0:03:00.2]} 6. e3 {[%clk 0:01:58.6]} 6... O-O {[%clk 0:03:01.5]}
7. Bd3 {[%clk 0:02:00]} 7... Nbd7 {[%clk 0:03:01.8]} 8. Nge2 {[%clk 0:02:01.2]}
8... c6 {[%clk 0:03:02.8]} 9. Qc2 {[%clk 0:02:02.7]} 9... Re8 {[%clk 0:03:04.1]}
10. O-O-O {[%clk 0:02:02.3]} 10... Nf8 {[%clk 0:03:05.1]} 11. h4 {[%clk
0:02:02.3]} 11... Be6 {[%clk 0:03:05.9]} 12. Nf4 {[%clk 0:02:03.4]} 12... Bd7
{[%clk 0:03:00.6]} 13. f3 {[%clk 0:02:03.2]} 13... Rc8 {[%clk 0:03:01]} 14. Kb1
{[%clk 0:02:04]} 14... a6 {[%clk 0:03:01.2]} 15. e4 {[%clk 0:02:05.3]} 15...
dxe4 {[%clk 0:02:59.5]} 16. fxe4 {[%clk 0:02:07.2]} 16... b5 {[%clk 0:02:58.5]}
17. e5 {[%clk 0:02:08.3]} 17... Nd5 {[%clk 0:02:58.1]} 18. Ncxd5 {[%clk
0:02:05]} 18... cxd5 {[%clk 0:02:58.8]} 19. Qf2 {[%clk 0:02:06.9]} 19... Be6
{[%clk 0:02:50.8]} 20. Rdf1 {[%clk 0:02:06.6]} 20... Bxg5 {[%clk 0:02:17.4]} 21.
hxg5 {[%clk 0:01:53.8]} 21... Qxg5 {[%clk 0:02:17.3]} 22. Rh5 {[%clk 0:00:53.7]}
22... Qg4 {[%clk 0:02:16.9]} 23. Rh4 {[%clk 0:00:53]} 23... Qg5 {[%clk
0:02:16.1]} 24. Rh5 {[%clk 0:00:44.4]} 24... Qg4 {[%clk 0:02:05.9]} 25. Be2
{[%clk 0:00:45.3]} 25... Bf5+ {[%clk 0:01:59.3]} 26. Ka1 {[%clk 0:00:34.3]}
26... Rc2 {[%clk 0:01:58.2]} 27. Bxg4 {[%clk 0:00:20.2]} 27... Rxf2 {[%clk
0:01:58]} 28. Rxf2 {[%clk 0:00:22.1]} 28... Bxg4 {[%clk 0:01:58.8]} 29. Rh4
{[%clk 0:00:22.7]} 29... Be6 {[%clk 0:01:58]} 30. b3 {[%clk 0:00:18.5]} 30... g5
{[%clk 0:01:51.3]} 31. Nh5 {[%clk 0:00:19.3]} 31... Rc8 {[%clk 0:01:48.1]} 32.
Rh1 {[%clk 0:00:17.7]} 32... Rc3 {[%clk 0:01:47.1]} 33. Nf6+ {[%clk 0:00:15.9]}
33... Kg7 {[%clk 0:01:47.1]} 34. Ne8+ {[%clk 0:00:16.9]} 34... Kh8 {[%clk
0:01:45.9]} 35. Kb2 {[%clk 0:00:18.8]} 35... Rg3 {[%clk 0:01:46.2]} 36. Nc7
{[%clk 0:00:18.6]} 36... Kg7 {[%clk 0:01:43.9]} 37. Rhf1 {[%clk 0:00:17.8]}
37... Ng6 {[%clk 0:01:39.6]} 38. Nxe6+ {[%clk 0:00:13.8]} 38... fxe6 {[%clk
0:01:41.5]} 39. Rf7+ {[%clk 0:00:15.1]} 39... Kh6 {[%clk 0:01:42.1]} 40. Rh1+
{[%clk 0:00:16]} 40... Nh4 {[%clk 0:01:42.7]} 41. Rf6+ {[%clk 0:00:17.9]} 41...
Kh5 {[%clk 0:01:43.6]} 42. Rxe6 {[%clk 0:00:19.8]} 42... Rxg2+ {[%clk
0:01:44.3]} 43. Ka3 {[%clk 0:00:21.7]} 43... a5 {[%clk 0:01:44.1]} 44. Re7
{[%clk 0:00:20.4]} 44... h6 {[%clk 0:01:41.3]} 45. Rd7 {[%clk 0:00:19]} 45...
b4+ {[%clk 0:01:39.2]} 46. Ka4 {[%clk 0:00:20.1]} 46... Rxa2+ {[%clk 0:01:38.6]}
47. Kb5 {[%clk 0:00:21.5]} 47... g4 {[%clk 0:01:38.9]} 48. e6 {[%clk 0:00:20.5]}
48... g3 {[%clk 0:01:39.3]} 49. e7 {[%clk 0:00:20.5]} 49... Re2 {[%clk
0:01:38.7]} 50. Rxd5+ {[%clk 0:00:22.2]} 50... Kg4 {[%clk 0:01:36.5]} 51. Re5
{[%clk 0:00:23.5]} 51... Rxe5+ {[%clk 0:01:30.6]} 52. dxe5 {[%clk 0:00:23.3]}
52... g2 {[%clk 0:01:31.5]} 53. Rg1 {[%clk 0:00:24]} 1-0

[Event "*** Titled Tuesday Blitz"]
[Site "Chess.com"]
[Date "2019.01.01"]
[Round "7"]
[White "jacky72"]
[Black "pastouche06"]
[Result "1/2-1/2"]
[WhiteElo "2595"]
[BlackElo "2455"]
[TimeControl "180+2"]
[EndTime "14:39:14 PST"]
[Termination "Game drawn by repetition"]

1. d4 {[%clk 0:03:01.9]} 1... Nf6 {[%clk 0:02:41.3]} 2. c4 {[%clk 0:03:02.8]}
2... e6 {[%clk 0:02:40.5]} 3. Nf3 {[%clk 0:03:04.2]} 3... d5 {[%clk 0:02:41.4]}
4. Nc3 {[%clk 0:03:04.9]} 4... c5 {[%clk 0:02:42.6]} 5. cxd5 {[%clk 0:03:05.9]}
5... Nxd5 {[%clk 0:02:44.5]} 6. e4 {[%clk 0:03:07]} 6... Nxc3 {[%clk 0:02:45.3]}
7. bxc3 {[%clk 0:03:08.9]} 7... cxd4 {[%clk 0:02:46.9]} 8. cxd4 {[%clk
0:03:10.8]} 8... Bb4+ {[%clk 0:02:47.9]} 9. Bd2 {[%clk 0:03:12.7]} 9... Bxd2+
{[%clk 0:02:48]} 10. Qxd2 {[%clk 0:03:14.6]} 10... O-O {[%clk 0:02:49.5]} 11.
Bc4 {[%clk 0:03:16.2]} 11... Nd7 {[%clk 0:02:49.8]} 12. O-O {[%clk 0:03:17.3]}
12... b6 {[%clk 0:02:49.9]} 13. d5 {[%clk 0:03:18.7]} 13... Nc5 {[%clk
0:02:40.7]} 14. Qe3 {[%clk 0:03:20.1]} 14... exd5 {[%clk 0:02:08.3]} 15. Bxd5
{[%clk 0:03:19.6]} 15... Bb7 {[%clk 0:02:09.4]} 16. Rad1 {[%clk 0:03:20.9]}
16... Bxd5 {[%clk 0:02:08.3]} 17. Rxd5 {[%clk 0:03:22]} 17... Qe7 {[%clk
0:02:08.7]} 18. e5 {[%clk 0:03:23.3]} 18... Rfd8 {[%clk 0:02:07.4]} 19. Rfd1
{[%clk 0:03:24.7]} 19... Rxd5 {[%clk 0:02:02.6]} 20. Rxd5 {[%clk 0:03:26.6]}
20... Rd8 {[%clk 0:02:03.9]} 21. Qd2 {[%clk 0:03:28.1]} 21... Rxd5 {[%clk
0:02:03.4]} 22. Qxd5 {[%clk 0:03:30]} 22... h6 {[%clk 0:02:04.7]} 23. Nd4 {[%clk
0:03:26]} 23... Qd7 {[%clk 0:01:49.4]} 24. Qxd7 {[%clk 0:03:24.8]} 24... Nxd7
{[%clk 0:01:51.3]} 25. f4 {[%clk 0:03:26.3]} 25... Kf8 {[%clk 0:01:29.9]} 26.
Kf2 {[%clk 0:03:26.3]} 26... Ke8 {[%clk 0:01:29.5]} 27. Ke3 {[%clk 0:03:27]}
27... Nc5 {[%clk 0:01:30.6]} 28. Nb5 {[%clk 0:03:20.6]} 28... a6 {[%clk
0:01:26.6]} 29. Nd6+ {[%clk 0:03:20.7]} 29... Kf8 {[%clk 0:00:58.6]} 30. Kd4
{[%clk 0:03:21.2]} 30... f6 {[%clk 0:00:37.5]} 31. Kd5 {[%clk 0:03:17.9]} 31...
fxe5 {[%clk 0:00:36.2]} 32. fxe5 {[%clk 0:03:19.8]} 32... Nd3 {[%clk 0:00:35.7]}
33. Kc6 {[%clk 0:03:02.1]} 33... Nb4+ {[%clk 0:00:35.6]} 34. Kxb6 {[%clk
0:03:03.3]} 34... Nxa2 {[%clk 0:00:37.5]} 35. Kxa6 {[%clk 0:03:03.1]} 35... Ke7
{[%clk 0:00:34.3]} 36. Kb5 {[%clk 0:02:55.7]} 36... Ke6 {[%clk 0:00:33.1]} 37.
Nc4 {[%clk 0:02:56.8]} 37... Kd5 {[%clk 0:00:24.7]} 38. h3 {[%clk 0:02:34.3]}
38... Nc3+ {[%clk 0:00:21.5]} 39. Kb4 {[%clk 0:02:34.4]} 39... Na2+ {[%clk
0:00:20.8]} 40. Kb3 {[%clk 0:02:34.9]} 40... Nc1+ {[%clk 0:00:22.4]} 41. Kc2
{[%clk 0:02:35.1]} 41... Ne2 {[%clk 0:00:18.8]} 42. Kd2 {[%clk 0:02:28]} 42...
Nf4 {[%clk 0:00:19]} 43. Ne3+ {[%clk 0:02:23.4]} 43... Kxe5 {[%clk 0:00:19.6]}
44. Ke1 {[%clk 0:02:25.1]} 44... g5 {[%clk 0:00:19.7]} 45. Kf2 {[%clk
0:02:23.7]} 45... h5 {[%clk 0:00:20.6]} 46. Kf3 {[%clk 0:02:25.2]} 46... Ng6
{[%clk 0:00:19.8]} 47. Nc4+ {[%clk 0:02:25.7]} 47... Kf5 {[%clk 0:00:20.1]} 48.
g3 {[%clk 0:02:25.9]} 48... g4+ {[%clk 0:00:20.5]} 49. hxg4+ {[%clk 0:02:25.9]}
49... hxg4+ {[%clk 0:00:22.4]} 50. Ke3 {[%clk 0:02:27.8]} 50... Ne7 {[%clk
0:00:22.3]} 51. Nd6+ {[%clk 0:02:25.5]} 51... Kg5 {[%clk 0:00:23.5]} 52. Ke4
{[%clk 0:02:25]} 52... Ng8 {[%clk 0:00:23.8]} 53. Nf7+ {[%clk 0:02:25.1]} 53...
Kf6 {[%clk 0:00:24.9]} 54. Ne5 {[%clk 0:02:26.1]} 54... Kg5 {[%clk 0:00:25.6]}
55. Nd7 {[%clk 0:02:27.3]} 55... Nf6+ {[%clk 0:00:26.1]} 56. Nxf6 {[%clk
0:02:28.5]} 56... Kxf6 {[%clk 0:00:28]} 57. Kf4 {[%clk 0:02:30.4]} 57... Kg7
{[%clk 0:00:29.4]} 58. Kg5 {[%clk 0:02:31.2]} 58... Kf7 {[%clk 0:00:30.4]} 59.
Kh5 {[%clk 0:02:30]} 59... Kg7 {[%clk 0:00:31.4]} 60. Kh4 {[%clk 0:02:31.5]}
60... Kh6 {[%clk 0:00:31.6]} 61. Kxg4 {[%clk 0:02:33]} 61... Kg6 {[%clk
0:00:33.3]} 62. Kf4 {[%clk 0:02:34.9]} 62... Kf6 {[%clk 0:00:34.7]} 63. Kg4
{[%clk 0:02:36.8]} 63... Kg6 {[%clk 0:00:36]} 64. Kh4 {[%clk 0:02:38.5]} 64...
Kh6 {[%clk 0:00:37.3]} 65. Kh3 {[%clk 0:02:40.1]} 65... Kh5 {[%clk 0:00:38.2]}
66. g4+ {[%clk 0:02:41.5]} 66... Kg5 {[%clk 0:00:39.3]} 67. Kg3 {[%clk
0:02:43.4]} 67... Kg6 {[%clk 0:00:40.4]} 68. Kf4 {[%clk 0:02:45.1]} 68... Kf6
{[%clk 0:00:41.6]} 69. g5+ {[%clk 0:02:46.8]} 69... Kg6 {[%clk 0:00:43]} 70. Kg4
{[%clk 0:02:48.7]} 70... Kg7 {[%clk 0:00:44.1]} 71. Kh5 {[%clk 0:02:50.6]} 71...
Kh7 {[%clk 0:00:45.2]} 72. Kg4 {[%clk 0:02:52.5]} 72... Kg6 {[%clk 0:00:46.4]}
73. Kf4 {[%clk 0:02:53.7]} 73... Kg7 {[%clk 0:00:47.7]} 74. Kf5 {[%clk
0:02:55.6]} 74... Kf7 {[%clk 0:00:49]} 75. g6+ {[%clk 0:02:57.5]} 75... Kg7
{[%clk 0:00:50.3]} 76. Kg5 {[%clk 0:02:59.4]} 76... Kg8 {[%clk 0:00:51.7]} 77.
Kh5 {[%clk 0:03:01.3]} 77... Kg7 {[%clk 0:00:52.8]} 78. Kg5 {[%clk 0:03:03.1]}
78... Kg8 {[%clk 0:00:54]} 79. Kf6 {[%clk 0:03:04.6]} 79... Kf8 {[%clk
0:00:55.1]} 80. Kf5 {[%clk 0:03:05.6]} 80... Kg7 {[%clk 0:00:56.2]} 81. Kg5
{[%clk 0:03:07]} 81... Kg8 {[%clk 0:00:57.4]} 82. Kh5 {[%clk 0:03:08.5]} 82...
Kg7 {[%clk 0:00:58.6]} 83. Kg5 {[%clk 0:03:09.9]} 83... Kg8 {[%clk 0:00:59.4]}
84. Kf5 {[%clk 0:03:10.3]} 84... Kg7 {[%clk 0:01:00.2]} 85. Kg5 {[%clk
0:03:10.8]} 1/2-1/2

[Event "*** Titled Tuesday Blitz"]
[Site "Chess.com"]
[Date "2019.01.01"]
[Round "7"]
[White "mitrabhaa"]
[Black "VladDobrov"]
[Result "1-0"]
[WhiteElo "2605"]
[BlackElo "2816"]
[TimeControl "180+2"]
[EndTime "14:39:17 PST"]
[Termination "mitrabhaa won by checkmate"]

1. Nf3 {[%clk 0:03:01.6]} 1... d5 {[%clk 0:03:00.4]} 2. b3 {[%clk 0:03:00]} 2...
f6 {[%clk 0:02:58]} 3. d4 {[%clk 0:02:58.3]} 3... c5 {[%clk 0:02:56.6]} 4. e3
{[%clk 0:02:56.4]} 4... Nc6 {[%clk 0:02:58]} 5. Bb2 {[%clk 0:02:56.4]} 5... Nh6
{[%clk 0:02:55]} 6. Nbd2 {[%clk 0:02:56.7]} 6... cxd4 {[%clk 0:02:54]} 7. exd4
{[%clk 0:02:57.6]} 7... Nf7 {[%clk 0:02:46.4]} 8. Bd3 {[%clk 0:02:58.8]} 8... e6
{[%clk 0:02:45.5]} 9. O-O {[%clk 0:02:59.7]} 9... Nb4 {[%clk 0:02:41.9]} 10. Be2
{[%clk 0:02:57.2]} 10... Bd6 {[%clk 0:02:42.3]} 11. c4 {[%clk 0:02:57.8]} 11...
O-O {[%clk 0:02:41.3]} 12. c5 {[%clk 0:02:57.6]} 12... Bc7 {[%clk 0:02:41.1]}
13. a3 {[%clk 0:02:58.7]} 13... Nc6 {[%clk 0:02:42.4]} 14. b4 {[%clk 0:03:00.2]}
14... a6 {[%clk 0:02:43.9]} 15. Nb3 {[%clk 0:02:56.2]} 15... e5 {[%clk
0:02:44.1]} 16. dxe5 {[%clk 0:02:56.4]} 16... fxe5 {[%clk 0:02:45.1]} 17. Qc2
{[%clk 0:02:56.8]} 17... Ng5 {[%clk 0:02:38.8]} 18. Nxg5 {[%clk 0:02:54.5]}
18... Qxg5 {[%clk 0:02:40.7]} 19. Rfd1 {[%clk 0:02:53.1]} 19... Be6 {[%clk
0:02:40.5]} 20. Nd2 {[%clk 0:02:35.3]} 20... e4 {[%clk 0:02:33.2]} 21. g3 {[%clk
0:02:21.2]} 21... Rxf2 {[%clk 0:01:36.8]} 22. Kxf2 {[%clk 0:02:16]} 22... Rf8+
{[%clk 0:01:37]} 23. Kg2 {[%clk 0:02:17]} 23... Qe3 {[%clk 0:01:36.5]} 24. Nxe4
{[%clk 0:02:09.3]} 24... Bf5 {[%clk 0:00:52.9]} 25. Bd3 {[%clk 0:02:07.7]} 25...
dxe4 {[%clk 0:00:35.1]} 26. Bc4+ {[%clk 0:02:07.4]} 26... Kh8 {[%clk 0:00:35.8]}
27. Rf1 {[%clk 0:01:48.6]} 27... Qh6 {[%clk 0:00:36.2]} 28. Kg1 {[%clk 0:01:43]}
28... Qg6 {[%clk 0:00:23.7]} 29. Qxe4 {[%clk 0:01:22.5]} 29... h6 {[%clk
0:00:24.4]} 30. Qg2 {[%clk 0:01:19.7]} 30... Ne5 {[%clk 0:00:21.7]} 31. Bd5
{[%clk 0:01:19.9]} 31... Nd3 {[%clk 0:00:21.7]} 32. Bc3 {[%clk 0:01:14.7]} 32...
Rd8 {[%clk 0:00:22.8]} 33. Bxb7 {[%clk 0:01:14.2]} 33... Qg5 {[%clk 0:00:20.4]}
34. Rad1 {[%clk 0:01:09.2]} 34... Bg6 {[%clk 0:00:15.9]} 35. Qf3 {[%clk
0:01:05]} 35... Rb8 {[%clk 0:00:03.9]} 36. Rxd3 {[%clk 0:01:02]} 36... Bxd3
{[%clk 0:00:04]} 37. Qxd3 {[%clk 0:01:03.1]} 37... Rxb7 {[%clk 0:00:05.4]} 38.
Rf8# {[%clk 0:01:03.8]} 1-0

[Event "*** Titled Tuesday Blitz"]
[Site "Chess.com"]
[Date "2019.01.01"]
[Round "7"]
[White "Bigfish1995"]
[Black "TrimitziosP7"]
[Result "1-0"]
[WhiteElo "2919"]
[BlackElo "2638"]
[TimeControl "180+2"]
[EndTime "14:39:23 PST"]
[Termination "Bigfish1995 won by resignation"]

1. e4 {[%clk 0:03:00.9]} 1... c5 {[%clk 0:03:00.9]} 2. Nf3 {[%clk 0:03:01.3]}
2... Nc6 {[%clk 0:03:01.6]} 3. Nc3 {[%clk 0:03:00.2]} 3... Nf6 {[%clk 0:02:47]}
4. Bc4 {[%clk 0:02:53.3]} 4... e6 {[%clk 0:02:43.4]} 5. O-O {[%clk 0:02:42]}
5... Nxe4 {[%clk 0:02:40.3]} 6. Nxe4 {[%clk 0:02:28.9]} 6... d5 {[%clk
0:02:41.2]} 7. Bxd5 {[%clk 0:02:22.5]} 7... exd5 {[%clk 0:02:38.5]} 8. Ng3
{[%clk 0:02:23.4]} 8... Be7 {[%clk 0:02:30.7]} 9. d4 {[%clk 0:02:23.4]} 9... c4
{[%clk 0:02:30.3]} 10. h3 {[%clk 0:02:16.1]} 10... O-O {[%clk 0:02:30.8]} 11.
Bf4 {[%clk 0:02:15.4]} 11... Bf6 {[%clk 0:02:30.1]} 12. c3 {[%clk 0:02:15]}
12... Re8 {[%clk 0:02:25.6]} 13. Qc2 {[%clk 0:02:13.7]} 13... g6 {[%clk
0:02:24.3]} 14. Rfe1 {[%clk 0:02:08.2]} 14... Be6 {[%clk 0:02:24.3]} 15. b4
{[%clk 0:01:56.2]} 15... Qd7 {[%clk 0:01:59.4]} 16. Qd2 {[%clk 0:01:48.3]} 16...
Bg7 {[%clk 0:01:56.3]} 17. a4 {[%clk 0:01:47.3]} 17... f6 {[%clk 0:01:56.4]} 18.
Bh6 {[%clk 0:01:33.4]} 18... Bf7 {[%clk 0:01:54.9]} 19. Bxg7 {[%clk 0:01:33.5]}
19... Kxg7 {[%clk 0:01:56.8]} 20. Qf4 {[%clk 0:01:23.1]} 20... a6 {[%clk
0:01:42.8]} 21. Re3 {[%clk 0:00:49.3]} 21... Re6 {[%clk 0:01:36.9]} 22. Qg4
{[%clk 0:00:34.6]} 22... Rae8 {[%clk 0:01:32.8]} 23. Nh5+ {[%clk 0:00:32.7]}
23... Kh8 {[%clk 0:01:08.2]} 24. Nxf6 {[%clk 0:00:33.7]} 24... Qe7 {[%clk
0:00:57]} 25. Nxe8 {[%clk 0:00:34.5]} 25... Rxe3 {[%clk 0:00:57.4]} 26. fxe3
{[%clk 0:00:35.6]} 26... Qxe3+ {[%clk 0:00:58.5]} 27. Kh2 {[%clk 0:00:36.6]}
27... Qxe8 {[%clk 0:00:52]} 28. Qf4 {[%clk 0:00:37.4]} 28... Kg7 {[%clk
0:00:49.8]} 29. Re1 {[%clk 0:00:37.7]} 29... Qd8 {[%clk 0:00:49.7]} 30. Ne5
{[%clk 0:00:29.1]} 30... Be8 {[%clk 0:00:39.9]} 31. Nxc6 {[%clk 0:00:24.2]}
31... Bxc6 {[%clk 0:00:41.8]} 32. Qe5+ {[%clk 0:00:25.4]} 32... Kh6 {[%clk
0:00:38.5]} 33. a5 {[%clk 0:00:25.3]} 33... Qc8 {[%clk 0:00:24.3]} 34. Qf4+
{[%clk 0:00:24.4]} 34... Kg7 {[%clk 0:00:02.9]} 35. Re7+ {[%clk 0:00:25.2]}
35... Kh8 {[%clk 0:00:02.4]} 36. Qf6+ {[%clk 0:00:25.7]} 1-0

[Event "*** Titled Tuesday Blitz"]
[Site "Chess.com"]
[Date "2019.01.01"]
[Round "7"]
[White "farzadbfd"]
[Black "Atanejhad"]
[Result "1-0"]
[WhiteElo "2478"]
[BlackElo "2248"]
[TimeControl "180+2"]
[EndTime "14:39:25 PST"]
[Termination "farzadbfd won by checkmate"]

1. e4 {[%clk 0:03:01.9]} 1... c5 {[%clk 0:03:00.3]} 2. Nc3 {[%clk 0:03:02.9]}
2... g6 {[%clk 0:02:57]} 3. g3 {[%clk 0:03:04.4]} 3... Bg7 {[%clk 0:02:57.9]} 4.
Bg2 {[%clk 0:03:05.9]} 4... Nc6 {[%clk 0:02:59]} 5. d3 {[%clk 0:03:06.9]} 5...
Nf6 {[%clk 0:02:58.2]} 6. Be3 {[%clk 0:03:08.1]} 6... d6 {[%clk 0:02:59.2]} 7.
h3 {[%clk 0:03:08.6]} 7... O-O {[%clk 0:03:00.4]} 8. Nge2 {[%clk 0:03:09.2]}
8... Rb8 {[%clk 0:03:01.8]} 9. O-O {[%clk 0:03:10.1]} 9... b5 {[%clk 0:03:01.9]}
10. Qd2 {[%clk 0:03:11.6]} 10... b4 {[%clk 0:03:02.3]} 11. Nd1 {[%clk
0:03:13.1]} 11... a5 {[%clk 0:02:59.5]} 12. f4 {[%clk 0:03:12.8]} 12... e5
{[%clk 0:02:59.8]} 13. fxe5 {[%clk 0:03:12.2]} 13... Nxe5 {[%clk 0:02:57.6]} 14.
Bh6 {[%clk 0:03:13.7]} 14... a4 {[%clk 0:02:26.2]} 15. Bxg7 {[%clk 0:03:13.6]}
15... Kxg7 {[%clk 0:02:26.9]} 16. Ne3 {[%clk 0:03:15.3]} 16... a3 {[%clk
0:02:21.5]} 17. b3 {[%clk 0:03:16.2]} 17... Be6 {[%clk 0:02:18.2]} 18. Nf4
{[%clk 0:03:15.2]} 18... Qe7 {[%clk 0:02:06.9]} 19. Rf2 {[%clk 0:03:14.8]} 19...
Nc6 {[%clk 0:02:06]} 20. Raf1 {[%clk 0:03:14.4]} 20... Nd4 {[%clk 0:02:03.7]}
21. g4 {[%clk 0:02:20.3]} 21... g5 {[%clk 0:01:39.3]} 22. Ne2 {[%clk 0:02:02.4]}
22... Nxe2+ {[%clk 0:01:02.4]} 23. Rxe2 {[%clk 0:01:53.7]} 23... Nd7 {[%clk
0:01:01.3]} 24. d4 {[%clk 0:01:27.6]} 24... cxd4 {[%clk 0:00:51.2]} 25. Qxd4+
{[%clk 0:01:29.5]} 25... f6 {[%clk 0:00:50.7]} 26. Rd2 {[%clk 0:00:59.9]} 26...
Rb6 {[%clk 0:00:31.4]} 27. c4 {[%clk 0:00:42.6]} 27... Ne5 {[%clk 0:00:16.7]}
28. Rfd1 {[%clk 0:00:35.5]} 28... Rfb8 {[%clk 0:00:07.4]} 29. Kh1 {[%clk
0:00:31.9]} 29... Rc6 {[%clk 0:00:05.5]} 30. Rf1 {[%clk 0:00:22.1]} 30... Rd8
{[%clk 0:00:05.5]} 31. Rdf2 {[%clk 0:00:22.9]} 31... Nd7 {[%clk 0:00:04.3]} 32.
Rf5 {[%clk 0:00:21.1]} 32... Nc5 {[%clk 0:00:03.3]} 33. Rxg5+ {[%clk 0:00:20.7]}
33... Kh8 {[%clk 0:00:03.2]} 34. Rxf6 {[%clk 0:00:21.3]} 34... Nxb3 {[%clk
0:00:02.1]} 35. Rf8# {[%clk 0:00:22.3]} 1-0

[Event "*** Titled Tuesday Blitz"]
[Site "Chess.com"]
[Date "2019.01.01"]
[Round "7"]
[White "Thee-Chessboy"]
[Black "Viaje"]
[Result "0-1"]
[WhiteElo "2246"]
[BlackElo "2335"]
[TimeControl "180+2"]
[EndTime "14:39:25 PST"]
[Termination "Viaje won by resignation"]

1. d4 {[%clk 0:02:51.6]} 1... Nf6 {[%clk 0:03:00.4]} 2. c4 {[%clk 0:02:52.2]}
2... c5 {[%clk 0:03:01.7]} 3. d5 {[%clk 0:02:52]} 3... b5 {[%clk 0:03:03.3]} 4.
Qc2 {[%clk 0:02:51.1]} 4... bxc4 {[%clk 0:03:01.8]} 5. e4 {[%clk 0:02:51.2]}
5... e6 {[%clk 0:03:03.5]} 6. Bxc4 {[%clk 0:02:46.7]} 6... exd5 {[%clk
0:03:04.2]} 7. exd5 {[%clk 0:02:46.7]} 7... d6 {[%clk 0:03:05.2]} 8. Nc3 {[%clk
0:02:47.1]} 8... Be7 {[%clk 0:03:06.6]} 9. Nf3 {[%clk 0:02:46.7]} 9... O-O
{[%clk 0:03:07.9]} 10. O-O {[%clk 0:02:47.8]} 10... Nbd7 {[%clk 0:03:08.9]} 11.
h3 {[%clk 0:02:46]} 11... Nb6 {[%clk 0:03:08.4]} 12. b3 {[%clk 0:02:44.3]} 12...
Bb7 {[%clk 0:03:08.6]} 13. Rd1 {[%clk 0:02:44.3]} 13... Re8 {[%clk 0:03:08.6]}
14. Bg5 {[%clk 0:02:37.8]} 14... h6 {[%clk 0:03:09.3]} 15. Bh4 {[%clk
0:02:36.4]} 15... Nfd7 {[%clk 0:03:10.4]} 16. Bg3 {[%clk 0:02:33.7]} 16... Bf8
{[%clk 0:02:58]} 17. Nb5 {[%clk 0:02:28.4]} 17... Nf6 {[%clk 0:02:56.5]} 18. Nc3
{[%clk 0:02:25.8]} 18... a5 {[%clk 0:02:35.2]} 19. Bb5 {[%clk 0:02:21.5]} 19...
Re7 {[%clk 0:02:34.4]} 20. Bc6 {[%clk 0:02:21.7]} 20... Bxc6 {[%clk 0:02:17.7]}
21. dxc6 {[%clk 0:02:23.6]} 21... Rc7 {[%clk 0:02:18.8]} 22. Nb5 {[%clk
0:01:50.2]} 22... Rxc6 {[%clk 0:02:19.3]} 23. Rac1 {[%clk 0:01:31.1]} 23... d5
{[%clk 0:02:14.1]} 24. Ne5 {[%clk 0:01:27.5]} 24... Rcc8 {[%clk 0:02:14.8]} 25.
a4 {[%clk 0:01:19.5]} 25... Ne4 {[%clk 0:02:02]} 26. Bh2 {[%clk 0:01:14.7]}
26... Qf6 {[%clk 0:01:38.1]} 27. f3 {[%clk 0:01:08.3]} 27... Nd6 {[%clk
0:01:38.6]} 28. Ng4 {[%clk 0:01:06]} 28... Qd8 {[%clk 0:01:31.5]} 29. Nc3 {[%clk
0:01:02.7]} 29... d4 {[%clk 0:01:22.2]} 30. Ne4 {[%clk 0:01:00.9]} 30... h5
{[%clk 0:01:01.2]} 31. Ne5 {[%clk 0:00:58.4]} 31... Nd5 {[%clk 0:00:59.1]} 32.
Nxd6 {[%clk 0:00:51]} 32... Bxd6 {[%clk 0:01:01]} 33. Qf5 {[%clk 0:00:50.3]}
33... Nf6 {[%clk 0:00:48.6]} 34. Re1 {[%clk 0:00:41.6]} 34... Rab8 {[%clk
0:00:42.2]} 35. Rb1 {[%clk 0:00:36.5]} 35... Qc7 {[%clk 0:00:32.1]} 36. g4
{[%clk 0:00:35.7]} 36... hxg4 {[%clk 0:00:30.9]} 37. hxg4 {[%clk 0:00:36.5]}
37... Nd5 {[%clk 0:00:25.2]} 38. Rb2 {[%clk 0:00:30.2]} 38... Ne3 {[%clk
0:00:25.1]} 39. Nc4 {[%clk 0:00:28.4]} 39... Bxh2+ {[%clk 0:00:22.2]} 40. Rxh2
{[%clk 0:00:28]} 40... Nxf5 {[%clk 0:00:23.3]} 0-1